Workbook

Sheet Início
D11: Dúvidas sobre a ferramenta?
D12: Assista o vídeo tutorial clicando aqui
F14: Clique nos botões acima para verificar a planilha
B16: Versão Especial da Planilha de Precificação da 4blue disponibilizada GRATUITAMENTE.
B17: Proibido qualquer tipo compartilhamento fora da sua empresa; Proibida a venda; Proibido o uso em serviços (consultorias, acessorias, etc.)
B18: Visto que esta versão foi especialmente disponibilizada gratuitamente, não conseguiremos dar suporte ou tirar dúvidas específicas.
B19: Assista o vídeo tutorial para garantir o uso correto.

Sheet Instruções
B2: 5 passos ESSENCIAIS para utilizar a ferramenta de Precificação para Produtos
B3: Este mini manual é muito simples e visual, perca 5 minutos aqui e ganhe anos de vida da sua empresa =) | O3: Assista ao vídeo tutorial clicando aqui
I12: Você pode preencher suas contas e valores de acordo
I13: com a necessidade da sua empresa.
I15: Ao lado um exemplo de uma empresa
I16: qualquer: foi utilizado outras nomenclaturas
I17: para as contas destacadas, também pode-se
I18: adicionar contas nos espaços vazios.
I19: Logo depois foram adicionados os valores
I20: das despesas de cada conta
I22: A mesma situação acontece para os os outros
I23: tipos de despesas e também na parte dos
I24: Investimentos!
I27: ATENÇÃO: NUNCA exclua ou insira linhas,
I28: senão algumas fórmulas serão perdidas
E42: A primeira coisa a ser preenchida é o Faturamento Previsto. A partir deste
E43: faturamento previsto será calculado o % da despesa fixa (entenda melhor em
E44: nosso e-book de precificação para produtos).
E45: Este faturamento indica um faturamento ideal da sua empresa. Não pode nem
E46: ser um valor alto demais, que a empresa nunca alcance (faz o preço final fica
E47: menor), mas nem um valor muito baixo (faz o preço final ficar maior).
I51: Para as linhas premium, gold e prata
I52: deve-se preencher os percentuais que incidem
I53: sobre as vendas.
I54: No exemplo ao lado inserimos novos valores.
I56: Já o lucro desejado e o investimento são valores
I57: percentuais que se deseja obter, ou seja, quero
I58: ter 22% de lucro líquido e quero reinvestir na
I59: empresa 10% do meu faturamento.
I61: Atenção! Não é só porque você colocou no lucro
I62: líquido desejado um valor que ele vai efetivamente
I63: acontecer. Para tal seria necessário que você vendesse
I64: sua capacidade máxima produtiva pelo preço ideal.
C75: Abaixo uma explicação sobre cada um dos campos a serem preenchidos:
C93: Todas as células pintadas são protegidas, pois estão com cálculos automáticos.
B129: PONTO DE EQUILÍBRIO
K137: O cálculo é todo automático.
K138: A planilha traz a Despesa Fixa Total cadastrada
K140: e o percentual médio da margem de contribuição.
K142: O cálculo do PE faz-se dividindo a Despesa Fixa
K143: pelo % da margem de contribuição.
K144: Neste exemplo, a empresa tem que faturar mais de 27 mil
K145: para pagar os quase 18 mil de despesas fixas.
B157: Primeiro você preenche quais são suas contas ou
B158: investimentos e os valores:
B166: Para depois verificar o quanto precisa faturar a mais
B167: para alcançar o ponto de equilíbrio

Sheet Despesas Totais
B2: Despesas Totais Mensais
E4: Total Despesas e Investimentos (mês) | F4: =SUM(F6,F7) -> R$ 55,000.00
B5: Despesas Fixas (mês)
B6: Despesas Financeiras | C6: =SUM(C7:C12) -> R$ 55,000.00 | E6: Despesa Fixa Total (mês) | F6: =SUM(C6,C13,C28,C39,C45,C52) -> R$ 55,000.00
B7: Tarifas Bancárias | E7: Investimento Fixo Total (mês) | F7: =SUM(C62,C69,C75,C81) -> 0
B8: Aluguel e tarifas Operadora Cartão | C8: R$ 55,000.00
B9: DOC/TED
B10: Outros custos com despesas financeiras
B11: balbalbal
B13: Despesas Administrativas | C13: =SUM(C14:C27) -> 0
B14: Telefone e Internet
B15: Celular
B16: Energia Elétrica
B17: Aluguel e Condomínio
B18: Água
B19: IPTU
B20: VTs / Gasolina / Estacionamento / Táxi
B21: Almoço / Supermercado / Lanches
B22: Correios
B23: Cartórios
B24: Outras despesas administrativas
B28: Despesas com Pessoal | C28: =SUM(C29:C38) -> 0
B29: Salário de Funcionários
B30: Bolsa de Estágio
B31: VT e VR
B32: Rescisão
B33: FGTS/INSS
B34: INSS - Federação - Sindicato
B35: Pro-Labores
B36: Plano de Saúde
B37: Outras despesas com pessoal
B39: Despesas com Serviços de Terceiros | C39: =SUM(C40:C44) -> 0
B40: Contador
B41: TI
B42: Advogado
B43: Outras despesas com serviços de terceiros
B45: Despesas com Materiais e Equipamentos | C45: =SUM(C46:C51) -> 0
B46: Manutenção Equipamentos Informática
B47: Softwares
B48: Materiais de Expediente/Manutenção/Limpeza
B49: Manutenção Veículo
B50: Outras despesas com materiais
C52: =SUM(C53:C59) -> 0
B61: Investimentos Fixos (mês)
B62: Investimentos em Marketing | C62: =SUM(C63:C68) -> 0
B63: Papelaria | C63: 0
B64: Site / internet | C64: 0
B65: Mídias/ Propaganda
B66: Eventos
B67: Outros investimentos em marketing | C67: 0
B69: Investimentos em Bens Materiais | C69: =SUM(C70:C74) -> 0
B70: Compra de Equipamentos de Informárica | C70: 0
B71: Reformas / Estrutura
B72: Mobiliário | C72: 0
B73: Outros investimentos em bens materiais | C73: 0
C74: 0
B75: Investimentos em Gestão Empresarial | C75: =SUM(C76:C80) -> 0
B76: Consultoria | C76: 0
B77: Treinamentos
B78: Outros investimentos desenv. empresarial
B81: Outros investimentos | C81: =SUM(C82:C86) -> 0
C82: 0
C83: 0
C84: 0
C85: 0
C86: 0

Sheet Markup
B2: Faturamento Previsto | C2: R$ 195,000.00 | W2: CAPACIDADE PRODUTIVA
W7: Nesta parte você vai calcular sua capacidade produtiva máxima. Atenção: horas produtivas são diferentes de horas de trabalho. O objetivo aqui é identificar quantas horas você consegue, efetivamente vender!
B8: Linha Premium | E8: Linha Gold | H8: Linha Prata
B9: =IF(B8="","",B8) -> Linha Premium | E9: =IF(E8="","",E8) -> Linha Gold | H9: =IF(H8="","",H8) -> Linha Prata
B10: Impostos sobre faturamento | C10: 6.5% | E10: Impostos sobre faturamento | F10: =C10 -> 6.5% | H10: Impostos sobre faturamento | I10: =F10 -> 6.5% | W10: Número de pessoas produtivas | X10: 2
B11: Comissões de venda | C11: 2.0% | E11: Comissões de venda | F11: =C11 -> 2.0% | H11: Comissões de venda | I11: =F11 -> 2.0% | W11: Horas diárias máximas produtivas (média por pessoa) | X11: 6 | Y11: =IF(X11>=8,"Hey! Você acha que as pessoas realmente conseguem PRODUZIR mais que 8h por dia, consegue?!","") -> 
B12: % de cartão crédito / débito | C12: 1.0% | E12: % de cartão crédito / débito | F12: 1.0% | H12: % de cartão crédito / débito | I12: 1.0% | W12: Dias trabalhados no mês (média por pessoa) | X12: 20
B13: % das Despesas Fixas x Faturamento | C13: ='Despesas Totais'!$F$4/Markup!$C$2 -> 28.2% | E13: % das Despesas Fixas x Faturamento | F13: ='Despesas Totais'!$F$4/Markup!$C$2 -> 28.2% | H13: % das Despesas Fixas x Faturamento | I13: ='Despesas Totais'!$F$4/Markup!$C$2 -> 28.2% | W13: HORAS PRODUTIVAS MÁXIMAS NO MÊS | X13: =X10*X11*X12 -> 240
B14: Outro % sobre venda | C14: 1.0% | E14: Outro % sobre venda | H14: Outro % sobre venda
W15: % de produtividade | X15: 70% | Y15: =IF(X15<60%,"Hey! Você não está sendo improdutivo demais não? Se você diminuir demais sua produtividade, o seu preço final vai aumentar!",IF(X15>=95%,"Hey! Como pode uma empresa ser tão produtiva assim? Você não está exagerando não?!","")) -> 
B16: % Lucro Líquido desejado | C16: 20.0% | E16: % Lucro Líquido desejado | F16: 10.0% | H16: % Lucro Líquido desejado | I16: 15.0%
W17: Horas reais de produtividade mensal por pessoa | X17: =X11*X12*X15 -> 84
B18: Taxa de Marcação | C18: =100%/(100%-SUM(C10:C16)) -> 2.422 | E18: Taxa de Marcação | F18: =100%/(100%-SUM(F10:F16)) -> 1.912 | H18: Taxa de Marcação | I18: =100%/(100%-SUM(I10:I16)) -> 2.114
W20: Horas reais de produtividade mensal total: | AA20: =X13*X15 -> 168

Sheet Precificação
Q1: Média ponderada | S1: =Markup!C2 -> 195,000.00
Q2: =SUMPRODUCT(Q4:Q500,T4:T500)/SUM(T4:T500) -> 50.6% | S2: =IF(SUM(S4:S500)<S1,"Faltam dados de faturamento, a soma está menor que o faturamento previsto (aba Markup)",IF(SUM(S4:S500)>S1,"Tem muito faturamento aí, mais faturamento do que o previsto (aba Markup)","")) -> Faltam dados de faturamento, a soma está menor que o faturamento previsto (aba Markup)
A3: Status do Preço | B3: Cód. Produto | C3: Produto | D3: Custo variável (do produto) | E3: Outros variáveis envolvidos | F3: Linha do Produto | G3: Taxa Marcação Praticada | H3: Custo Variável Unitários | I3: Preço Sugerido do Produto | K3: Preço Praticado | L3: Diferença | M3: % | P3: Margem de Contribuição | Q3: % Margem de Contribuição | S3: Faturamento por mês deste produto | T3: % de faturamento deste item | X3: Linha do produto | Y3: Taxa de Marcação
A4: =IF(L4="Falta Dados","",IF(L4="","",IF(L4<0,"Abaixo do ideal","Preço bom"))) -> Preço bom | C4: EXEMPLO | D4: 7.00 | F4: Linha Prata | G4: =IF(F4=$X$4,$Y$4,IF(F4=$X$5,$Y$5,IF(F4=$X$6,$Y$6,""))) -> 2.115 | H4: =IF(SUM(D4:E4)=0,"",SUM(D4:E4)) -> 7.00 | I4: =IF(OR(H4="",G4=""),"",H4*G4) -> 14.81 | K4: 21.00 | L4: =IF(AND(K4>0,I4=""),"Falta Dados",IF(K4="","",K4-I4)) -> 6.20 | M4: =IF(K4="","",L4/K4) -> 29.5% | P4: =IF(I4="","",(K4-H4-O4-(K4*SUM($AC$4:$AC$7)))) -> 11.80 | Q4: =IF(P4="","",(P4/K4)) -> 56.2% | S4: 100.00 | T4: =IF(S4="","",S4/SUM($S$4:$S$500)) -> 50.0% | X4: =IF(Markup!B9="","",Markup!B9) -> Linha Premium | Y4: =IF(X4="","",ROUNDUP(Markup!C18,3)) -> 2.422 | AB4: Impostos sobre faturamento | AC4: =IF(Markup!C10="","",Markup!C10) -> 6.5%
A5: Abaixo do ideal | C5: EXEMPLO | D5: 4.00 | F5: Linha Premium | G5: 2.422 | H5: =IF(SUM(D5:E5)=0,"",SUM(D5:E5)) -> 4.00 | I5: 9.69 | K5: 9.00 | L5: -0.69 | M5: =IF(K5="","",L5/K5) -> -7.6% | P5: 4.06 | Q5: =IF(P5="","",(P5/K5)) -> 45.1% | S5: 100.00 | T5: =IF(S5="","",S5/SUM($S$4:$S$500)) -> 50.0% | X5: =IF(Markup!E9="","",Markup!E9) -> Linha Gold | Y5: =IF(X5="","",ROUNDUP(Markup!F18,3)) -> 1.913 | AB5: Comissões de venda | AC5: =IF(Markup!C11="","",Markup!C11) -> 2.0%
H6: =IF(SUM(D6:E6)=0,"",SUM(D6:E6)) ->  | M6: =IF(K6="","",L6/K6) ->  | X6: =IF(Markup!H9="","",Markup!H9) -> Linha Prata | Y6: =IF(X6="","",ROUNDUP(Markup!I18,3)) -> 2.115 | AB6: % de cartão crédito / débito | AC6: =IF(Markup!C12="","",Markup!C12) -> 1.0%
A7: =IF(L7="Falta Dados","",IF(L7="","",IF(L7<0,"Abaixo do ideal","Preço bom"))) ->  | H7: =IF(SUM(D7:E7)=0,"",SUM(D7:E7)) ->  | L7: =IF(AND(K7>0,I7=""),"Falta Dados",IF(K7="","",K7-I7)) ->  | M7: =IF(L7="Falta Dados","",IF(K7="","",L7/K7)) ->  | AB7: Outro % sobre venda | AC7: =IF(Markup!C14="","",Markup!C14) -> 1.0%
A8: =IF(L8="Falta Dados","",IF(L8="","",IF(L8<0,"Abaixo do ideal","Preço bom"))) ->  | L8: =IF(AND(K8>0,I8=""),"Falta Dados",IF(K8="","",K8-I8)) ->  | M8: =IF(K8="","",L8/K8) -> 
G68: =IF(F68=$X$4,$Y$4,IF(F68=$X$5,$Y$5,IF(F68=$X$6,$Y$6,""))) ->  | I68: =IF(OR(H68="",G68=""),"",H68*G68) ->  | P68: =IF(I68="","",(K68-H68-O68-(K68*SUM($AC$4:$AC$7)))) -> 
Q69: =IF(P69="","",(P69/K69)) ->  | T69: =IF(S69="","",S69/SUM($S$4:$S$500)) -> 
H71: =IF(SUM(D71:E71)=0,"",SUM(D71:E71)) ->  | M71: =IF(K71="","",L71/K71) -> 
A72: =IF(L72="Falta Dados","",IF(L72="","",IF(L72<0,"Abaixo do ideal","Preço bom"))) ->  | L72: =IF(AND(K72>0,I72=""),"Falta Dados",IF(K72="","",K72-I72)) -> 
G132: =IF(F132=$X$4,$Y$4,IF(F132=$X$5,$Y$5,IF(F132=$X$6,$Y$6,""))) ->  | I132: =IF(OR(H132="",G132=""),"",H132*G132) ->  | P132: =IF(I132="","",(K132-H132-O132-(K132*SUM($AC$4:$AC$7)))) -> 
Q133: =IF(P133="","",(P133/K133)) ->  | T133: =IF(S133="","",S133/SUM($S$4:$S$500)) -> 
H135: =IF(SUM(D135:E135)=0,"",SUM(D135:E135)) ->  | M135: =IF(K135="","",L135/K135) -> 
A136: =IF(L136="Falta Dados","",IF(L136="","",IF(L136<0,"Abaixo do ideal","Preço bom"))) ->  | L136: =IF(AND(K136>0,I136=""),"Falta Dados",IF(K136="","",K136-I136)) -> 
G196: =IF(F196=$X$4,$Y$4,IF(F196=$X$5,$Y$5,IF(F196=$X$6,$Y$6,""))) ->  | I196: =IF(OR(H196="",G196=""),"",H196*G196) ->  | P196: =IF(I196="","",(K196-H196-O196-(K196*SUM($AC$4:$AC$7)))) -> 
Q197: =IF(P197="","",(P197/K197)) ->  | T197: =IF(S197="","",S197/SUM($S$4:$S$500)) -> 
H199: =IF(SUM(D199:E199)=0,"",SUM(D199:E199)) ->  | M199: =IF(K199="","",L199/K199) -> 
A200: =IF(L200="Falta Dados","",IF(L200="","",IF(L200<0,"Abaixo do ideal","Preço bom"))) ->  | L200: =IF(AND(K200>0,I200=""),"Falta Dados",IF(K200="","",K200-I200)) -> 
G260: =IF(F260=$X$4,$Y$4,IF(F260=$X$5,$Y$5,IF(F260=$X$6,$Y$6,""))) ->  | I260: =IF(OR(H260="",G260=""),"",H260*G260) ->  | P260: =IF(I260="","",(K260-H260-O260-(K260*SUM($AC$4:$AC$7)))) -> 
Q261: =IF(P261="","",(P261/K261)) ->  | T261: =IF(S261="","",S261/SUM($S$4:$S$500)) -> 
H263: =IF(SUM(D263:E263)=0,"",SUM(D263:E263)) ->  | M263: =IF(K263="","",L263/K263) -> 
A264: =IF(L264="Falta Dados","",IF(L264="","",IF(L264<0,"Abaixo do ideal","Preço bom"))) ->  | L264: =IF(AND(K264>0,I264=""),"Falta Dados",IF(K264="","",K264-I264)) -> 
G324: =IF(F324=$X$4,$Y$4,IF(F324=$X$5,$Y$5,IF(F324=$X$6,$Y$6,""))) ->  | I324: =IF(OR(H324="",G324=""),"",H324*G324) ->  | P324: =IF(I324="","",(K324-H324-O324-(K324*SUM($AC$4:$AC$7)))) -> 
Q325: =IF(P325="","",(P325/K325)) ->  | T325: =IF(S325="","",S325/SUM($S$4:$S$500)) -> 
H327: =IF(SUM(D327:E327)=0,"",SUM(D327:E327)) ->  | M327: =IF(K327="","",L327/K327) -> 
A328: =IF(L328="Falta Dados","",IF(L328="","",IF(L328<0,"Abaixo do ideal","Preço bom"))) ->  | L328: =IF(AND(K328>0,I328=""),"Falta Dados",IF(K328="","",K328-I328)) -> 
G388: =IF(F388=$X$4,$Y$4,IF(F388=$X$5,$Y$5,IF(F388=$X$6,$Y$6,""))) ->  | I388: =IF(OR(H388="",G388=""),"",H388*G388) ->  | P388: =IF(I388="","",(K388-H388-O388-(K388*SUM($AC$4:$AC$7)))) -> 
Q389: =IF(P389="","",(P389/K389)) ->  | T389: =IF(S389="","",S389/SUM($S$4:$S$500)) -> 
H391: =IF(SUM(D391:E391)=0,"",SUM(D391:E391)) ->  | M391: =IF(K391="","",L391/K391) -> 
A392: =IF(L392="Falta Dados","",IF(L392="","",IF(L392<0,"Abaixo do ideal","Preço bom"))) ->  | L392: =IF(AND(K392>0,I392=""),"Falta Dados",IF(K392="","",K392-I392)) -> 
G452: =IF(F452=$X$4,$Y$4,IF(F452=$X$5,$Y$5,IF(F452=$X$6,$Y$6,""))) ->  | I452: =IF(OR(H452="",G452=""),"",H452*G452) ->  | P452: =IF(I452="","",(K452-H452-O452-(K452*SUM($AC$4:$AC$7)))) -> 
Q453: =IF(P453="","",(P453/K453)) ->  | T453: =IF(S453="","",S453/SUM($S$4:$S$500)) -> 
H455: =IF(SUM(D455:E455)=0,"",SUM(D455:E455)) ->  | M455: =IF(K455="","",L455/K455) -> 
A456: =IF(L456="Falta Dados","",IF(L456="","",IF(L456<0,"Abaixo do ideal","Preço bom"))) ->  | L456: =IF(AND(K456>0,I456=""),"Falta Dados",IF(K456="","",K456-I456)) -> 
A499: =IF(L499="Falta Dados","",IF(L499="","",IF(L499<0,"Abaixo do ideal","Preço bom"))) ->  | G499: =IF(F499=$X$4,$Y$4,IF(F499=$X$5,$Y$5,IF(F499=$X$6,$Y$6,""))) ->  | H499: =IF(SUM(D499:E499)=0,"",SUM(D499:E499)) ->  | I499: =IF(OR(H499="",G499=""),"",H499*G499) ->  | L499: =IF(AND(K499>0,I499=""),"Falta Dados",IF(K499="","",K499-I499)) ->  | M499: =IF(K499="","",L499/K499) ->  | P499: =IF(I499="","",(K499-H499-O499-(K499*SUM($AC$4:$AC$7)))) ->  | Q499: =IF(P499="","",(P499/K499)) -> 
A500: =IF(L500="Falta Dados","",IF(L500="","",IF(L500<0,"Abaixo do ideal","Preço bom"))) ->  | G500: =IF(F500=$X$4,$Y$4,IF(F500=$X$5,$Y$5,IF(F500=$X$6,$Y$6,""))) ->  | H500: =IF(SUM(D500:E500)=0,"",SUM(D500:E500)) ->  | I500: =IF(OR(H500="",G500=""),"",H500*G500) ->  | L500: =IF(AND(K500>0,I500=""),"Falta Dados",IF(K500="","",K500-I500)) ->  | M500: =IF(K500="","",L500/K500) ->  | P500: =IF(I500="","",(K500-H500-O500-(K500*SUM($AC$4:$AC$7)))) ->  | Q500: =IF(P500="","",(P500/K500)) -> 
A502: FIM | B502: FIM | C502: FIM | D502: FIM | E502: FIM | F502: FIM | G502: FIM | H502: FIM | I502: FIM | J502: FIM | K502: FIM | L502: FIM | M502: FIM | N502: FIM | O502: FIM | P502: FIM | Q502: FIM | S502: FIM | T502: FIM

Sheet Cálculo PE
I2: Cálculo Ponto de Equilíbrio
J4: Consultoria Tipo 01 | K4: Consultoria tipo 02 | L4: Serviço 3 | M4: Serviço 4 | N4: Serviço 5 | O4: Serviço 6 | P4: Serviço 7 | Q4: Serviço 8 | R4: Serviço 9 | S4: Serviço 10 | T4: Serviço 11
D5: Despesa Total (mês) | E5: ='Despesas Totais'!F4 -> R$ 55,000.00 | I5: Preço de Venda dos Produtos/Serviços: | J5: R$ 5,000.00 | K5: R$ 2,000.00
I6: Custo com Serviço | J6: 0 | L6: 0 | M6: 0 | N6: 0 | O6: 0 | P6: 0 | Q6: 0 | R6: 0 | S6: 0 | T6: 0
D7: Média da Margem de Contribuição | E7: =Precificação!Q2 -> 50.6% | I7: Custo com tercerização | J7: R$ 1,000.00 | L7: 0 | M7: 0 | N7: 0 | O7: 0 | P7: 0 | Q7: 0 | R7: 0 | S7: 0 | T7: 0
I8: Outros custos serviço | J8: 0 | L8: 0 | M8: 0 | N8: 0 | O8: 0 | P8: 0 | Q8: 0 | R8: 0 | S8: 0 | T8: 0
D9: Ponto de Equilíbrio | E9: =E5/E7 -> R$ 108,671.79 | I9: Comissão | J9: 0 | K9: 0 | L9: 0 | M9: 0 | N9: 0 | O9: 0 | P9: 0 | Q9: 0 | R9: 0 | S9: 0 | T9: 0
I10: Impostos | J10: =J5*16% -> R$ 800.00 | K10: =K5*16% -> R$ 320.00 | L10: 0 | M10: 0 | N10: 0 | O10: 0 | P10: 0 | Q10: 0 | R10: 0 | S10: 0 | T10: 0
I11: Custo com Transporte | J11: R$ 120.00 | K11: R$ 80.00 | L11: 0 | M11: 0 | N11: 0 | O11: 0 | P11: 0 | Q11: 0 | R11: 0 | S11: 0 | T11: 0
J12: 0 | K12: 0 | L12: 0 | M12: 0 | N12: 0 | O12: 0 | P12: 0 | Q12: 0 | R12: 0 | S12: 0 | T12: 0
J13: 0 | K13: 0 | L13: 0 | M13: 0 | N13: 0 | O13: 0 | P13: 0 | Q13: 0 | R13: 0 | S13: 0 | T13: 0
I15: Margem de Contribuição Unitária | J15: =J5-SUM(J6:J13) -> R$ 3,080.00 | K15: R$ 1,600.00 | L15: 0 | M15: 0 | N15: 0 | O15: 0 | P15: 0 | Q15: 0 | R15: 0 | S15: 0 | T15: 0
I16: Margem de Contribuição (%) | J16: =IF(OR(J5=0,J15=0),FALSE,J15/J5) -> 62% | K16: 80% | L16: FALSE | M16: FALSE | N16: FALSE | O16: FALSE | P16: FALSE | Q16: FALSE | R16: FALSE | S16: FALSE | T16: FALSE
I18: Faturamento Total médio (ou esperado) com Produto/Serviço ao mês | J18: R$ 7,000.00 | K18: R$ 3,000.00
I20: Despesa Total (mês) | J20: ='Despesas Totais'!F4 -> R$ 55,000.00 | L20: Média da Margem de Contribuição | M20: =IF(OR(SUM(J16:T16)*SUM(J18:T18)=0,SUM(J18:T18)=0),0,SUM(J16:T16*J18:T18)/SUM(J18:T18)) -> 67% | O20: Ponto de Equilíbrio | P20: =IF(OR(M20=0,J20=0),0,J20/M20) -> R$ 81,942.79
O21: PE em Unidades | P21: =IF(P20=0,0,P20/(SUM(J5:T5*J18:T18)/SUM(J18:T18))) -> 20

Sheet Cálculo PE Específico
B2: Cálculo PE Específico
B4: Contratar pessoas
B6: Investimento em treinamentos
B8: Exemplo 01 | C8: R$ 3,000.00 | G8: Preencha quais são os tipos de Investimentos
G9: Contratar pessoas
B10: Média da Margem de Contrubuição | C10: ='Cálculo PE'!E7 -> 51% | G10: Aumento de Salário
G11: Contratar Consultoria
B12: =B22 -> Faturamento para alcançar o PE | C12: =IF(OR(SUM($C$4,$C$6,$C$8)=0,$C$10=0),0,SUM($C$4,$C$6,$C$8)/$C$10) -> R$ 5,927.55 | G12: Investimento em treinamentos
G13: Exemplo 01
G14: Exemplo 02
G15: Exemplo 03
B19: =B4 -> Contratar pessoas | C19: =C4 -> 0
B20: =B6 -> Investimento em treinamentos | C20: =C6 -> 0
B21: =B8 -> Exemplo 01 | C21: =C8 -> 3000
B22: Faturamento para alcançar o PE | C22: =C12 -> R$ 5,927.55

Sheet Seu próximo passo
